bitfinex/quotes_SOLUSD_20241009
["timestamp","ask_amount","ask_price","bid_price","bid_amount"]
[1728445321834,1.72995162,144.52,144.48,6.9213]
[1728445323834,1.72995162,144.52,144.49,6.9208]
[1728445324621,6.92,144.51,144.47,24.2255]
[1728445324817,1.73019226,144.5,144.47,24.2255]
[1728445325143,6.9195,144.52,144.47,24.2255]
[1728445325519,1.73014744,144.51,144.47,24.2255]
[1728445326948,1.73014744,144.51,144.48,6.9212]
[1728445327245,6.9195,144.52,144.48,8.30531899]
[1728445329339,6.9195,144.52,144.48,6.9212]
[1728445329951,6.9195,144.52,144.48,8.30527893]
[1728445331021,1.73009918,144.51,144.48,6.9212]
[1728445333051,6.9195,144.52,144.48,8.30528145]
[1728445333354,6.9195,144.52,144.48,8.30528007]
[1728445334154,1.73009812,144.51,144.48,6.9212]
[1728445334364,1.73009812,144.51,144.47,24.2255]
[1728445334858,8.65009812,144.51,144.47,24.2255]
[1728445335042,1.73019792,144.5,144.47,24.2255]
[1728445335240,6.92,144.51,144.47,24.2255]
[1728445335552,6.9195,144.52,144.47,24.2255]
[1728445335756,1.73016012,144.51,144.47,24.2255]
[1728445336452,1.73016012,144.51,144.48,6.921]
[1728445338035,1.73016012,144.51,144.47,24.2254]
[1728445339647,1.73018263,144.52,144.48,1.3841461]
[1728445339957,1.73018263,144.52,144.49,17.3012]
[1728445340135,6.9191,144.53,144.49,17.3012]
[1728445340336,1.73009878,144.52,144.49,17.3012]
[1728445341359,1.73009849,144.54,144.49,17.3012]
[1728445341652,2.22844948,144.55,144.51,6.9195]
[1728445342563,0.498554,144.55,144.52,1.3838276]
[1728445342858,0.498554,144.55,144.52,6.919]
[1728445344245,0.498554,144.55,144.51,24.2187]
[1728445345938,0.498554,144.55,144.52,1.38375065]
[1728445346151,0.498554,144.55,144.53,6.9187]
[1728445347254,0.498554,144.55,144.52,6.9194]
[1728445347635,2.2281929,144.55,144.52,6.9194]
[1728445348592,0.498554,144.55,144.52,6.9194]
[1728445348868,0.498554,144.55,144.52,8.30308202]
[1728445350943,0.498554,144.55,144.52,6.9194]
[1728445353273,0.498554,144.55,144.52,8.30308564]
[1728445354764,0.498554,144.55,144.52,6.9194]
[1728445355278,0.498554,144.55,144.52,8.30308673]
[1728445357448,0.498554,144.55,144.52,6.9194]
[1728445358064,0.498554,144.55,144.52,8.3030845]
[1728445358850,0.498554,144.55,144.52,6.9194]
[1728445359049,0.498554,144.55,144.52,8.30300048]
[1728445360979,0.498554,144.55,144.52,6.9194]
[1728445361978,0.498554,144.55,144.53,1.3836087]
[1728445362156,0.498554,144.55,144.53,23.776884]
[1728445362780,0.498554,144.55,144.53,8.30236575]
[1728445363078,0.498554,144.55,144.53,6.9188]
[1728445364161,0.498554,144.55,144.52,23.776884]
[1728445364358,0.498554,144.55,144.52,30.696184]
[1728445372382,0.498554,144.55,144.52,6.9193]
[1728445372585,7.416554,144.55,144.51,24.2187]
[1728445372881,1.72967357,144.54,144.49,15.4679]
[1728445373085,6.9188,144.54,144.49,15.4679]
[1728445373273,6.9188,144.54,144.5,6.9204]
[1728445375386,7.416654,144.55,144.51,1.38378572]
[1728445375582,7.416654,144.55,144.51,8.30358572]
[1728445376098,1.72972541,144.54,144.51,6.9198]
[1728445376384,7.416654,144.55,144.51,6.9198]
[1728445378303,1.72973239,144.54,144.5,30.697184]
[1728445378583,7.416654,144.55,144.5,30.697184]
[1728445378776,7.416654,144.55,144.51,8.3035863]
[1728445381792,0.498554,144.55,144.52,30.696184]
[1728445382000,9.14610869,144.55,144.51,30.696584]
[1728445382168,6.9185,144.54,144.5,24.2208]
[1728445387569,0.498554,144.55,144.5,24.2208]
[1728445387900,7.416654,144.55,144.5,24.2208]
[1728445388370,7.416654,144.55,144.5,25.60460491]
[1728445390398,1.7297474,144.54,144.5,24.2208]
[1728445390698,7.416654,144.55,144.51,1.38384162]
[1728445390894,7.416654,144.55,144.5,24.2208]
[1728445390895,1.72978746,144.54,144.5,25.60462996]
[1728445391078,7.416654,144.55,144.5,25.60462996]
[1728445391278,1.72978743,144.54,144.5,25.60462996]
[1728445391478,1.72978743,144.54,144.5,24.2208]
[1728445391891,7.416654,144.55,144.51,1.38383441]
[1728445392074,0.498554,144.55,144.51,6.9196]
[1728445393180,0.498554,144.55,144.51,8.30330835]
[1728445393382,0.498554,144.55,144.51,6.9196]
[1728445396685,0.498554,144.55,144.51,8.3033095]
[1728445396887,0.498554,144.55,144.51,6.9196]
[1728445398701,0.498554,144.55,144.51,8.30330906]
[1728445398908,0.498554,144.55,144.51,6.9196]
[1728445399200,0.498554,144.55,144.52,6.9192]
[1728445400396,0.498554,144.55,144.53,1.38370533]
[1728445402006,0.498554,144.55,144.52,6.9192]
[1728445404306,0.498554,144.55,144.52,8.30283981]
[1728445405191,0.498554,144.55,144.52,6.9192]
[1728445406703,0.498554,144.55,144.52,8.30284104]
[1728445406909,0.498554,144.55,144.52,6.9192]
[1728445407210,0.498554,144.55,144.53,1.38364053]
[1728445407594,0.498554,144.55,144.52,6.9192]
[1728445409894,0.498554,144.55,144.53,1.38364137]
[1728445410093,0.498554,144.55,144.52,6.9192]
[1728445411795,0.498554,144.55,144.53,1.38363557]
[1728445412407,0.498554,144.55,144.52,6.9192]
[1728445412800,0.498554,144.55,144.54,6.9185]
[1728445412985,0.498554,144.55,144.54,30.695384]
[1728445415602,0.498554,144.55,144.54,50.695384]
[1728445415905,0.498554,144.55,144.54,63.64258409]
[1728445417898,0.498554,144.55,144.54,63.76807409]
[1728445418517,0.498554,144.55,144.54,65.15111534]
[1728445423408,0.498554,144.55,144.54,63.76807409]
[1728445423914,0.498554,144.55,144.54,50.820874]
[1728445425207,0.498554,144.55,144.54,52.20395932]
[1728445426295,0.498554,144.55,144.54,65.27664636]
[1728445426501,0.498554,144.55,144.54,63.89356409]
[1728445428006,0.498554,144.55,144.54,65.27650852]
[1728445428996,0.498554,144.55,144.54,71.57260852]
[1728445430225,8.64177736,144.65,144.55,35.42468]
[1728445430413,8.64177736,144.65,144.6,6.9152]
[1728445430728,8.64177736,144.65,144.61,1.38279598]
[1728445431224,22.7225,144.66,144.62,1.38282471]
[1728445431429,22.7225,144.66,144.62,23.776884]
[1728445434228,8.64159699,144.65,144.62,23.776884]
[1728445435131,6.9132,144.65,144.62,23.776884]
[1728445435510,6.9132,144.65,144.62,25.15960057]
[1728445435710,6.9132,144.65,144.62,23.776884]
[1728445436116,1.72839609,144.68,144.63,1.38271671]
[1728445436117,6.9128,144.66,144.63,1.38271671]
[1728445436827,6.9128,144.66,144.62,30.691184]
[1728445437127,8.64029609,144.68,144.64,23.776884]
[1728445437338,6.9123,144.67,144.64,23.776884]
[1728445438931,6.9123,144.67,144.64,1.3825082]
[1728445439135,6.9123,144.67,144.63,23.776884]
[1728445440225,8.84889904,144.69,144.63,23.776884]
[1728445440415,6.9128,144.66,144.63,23.776884]
[1728445443234,2.57999904,144.69,144.64,1.38255472]
[1728445443540,6.9123,144.67,144.64,1.38255472]
[1728445444039,0.8517224,144.69,144.65,23.776884]
[1728445444238,0.8517224,144.69,144.66,1.38233188]
[1728445445045,7.7631224,144.69,144.66,1.38233188]
[1728445446443,0.8517224,144.69,144.67,30.688984]
[1728445446615,0.8517224,144.69,144.66,1.38233188]
[1728445446616,0.8517224,144.69,144.68,32.07069166]
[1728445447012,0.8517224,144.69,144.68,30.688684]
[1728445447236,0.8517224,144.69,144.68,25.15877159]
[1728445447817,0.8517224,144.69,144.68,23.776884]
[1728445448024,0.8517224,144.69,144.68,25.1589378]
[1728445452327,0.8517224,144.69,144.68,23.776884]
[1728445452847,0.8517224,144.69,144.68,25.15894535]
[1728445454454,0.8517224,144.69,144.68,32.07074535]
[1728445455252,0.8517224,144.69,144.68,30.688684]
[1728445456046,0.8517224,144.69,144.68,23.776884]
[1728445459461,0.8517224,144.69,144.67,23.776884]
[1728445463752,0.8517224,144.69,144.66,23.776884]
[1728445463959,0.8517224,144.69,144.65,23.776884]
[1728445464458,7.7631224,144.69,144.65,23.776884]
[1728445465549,7.7631224,144.69,144.65,30.689984]
[1728445466647,7.7631224,144.69,144.66,1.38225729]
[1728445467467,16.1613,144.68,144.65,1.38225499]
[1728445467791,6.9146,144.63,144.56,22.1853]
[1728445467936,19.0093623,144.67,144.56,22.1853]
[1728445467937,6.9148,144.62,144.56,15.2679]
[1728445468137,6.9148,144.62,144.55,12.9944]
[1728445468138,6.9152,144.61,144.55,6.0765]
[1728445468357,6.9152,144.61,144.54,19.86560009]
[1728445468546,6.9156,144.6,144.53,32.5643]
[1728445469155,6.9156,144.6,144.53,39.4828]
[1728445469464,6.9152,144.61,144.54,8.30156968]
[1728445469675,6.9152,144.61,144.54,6.9184]
[1728445470246,8.64466512,144.6,144.54,23.776884]
[1728445470946,6.9161,144.59,144.54,23.776884]
[1728445472148,6.9161,144.59,144.53,39.4832]
[1728445478151,6.9166,144.58,144.53,39.4832]
[1728445480551,6.9161,144.59,144.54,23.776884]
[1728445481151,6.9161,144.59,144.54,30.695184]
[1728445481781,1.72904926,144.61,144.54,30.695184]
[1728445481957,23.076,144.62,144.56,23.776884]
[1728445482152,23.076,144.62,144.57,1.38303374]
[1728445482775,23.076,144.62,144.56,6.9171]
[1728445484672,6.9152,144.61,144.56,6.9171]
[1728445488880,6.9157,144.6,144.55,17.294]
[1728445489666,16.1613,144.62,144.55,17.294]
[1728445489868,16.1613,144.62,144.56,6.9175]
[1728445490166,1.72889743,144.64,144.56,6.9175]
[1728445490368,6.9147,144.62,144.57,6.9169]
[1728445491860,6.9147,144.62,144.56,30.694284]
[1728445492766,6.9156,144.6,144.55,17.294]
[1728445493269,6.9156,144.6,144.56,1.38247783]
[1728445493679,6.9156,144.6,144.55,25.59504747]
[1728445493879,1.72888208,144.64,144.55,24.2119]
[1728445494184,6.9152,144.61,144.56,30.694284]
[1728445495280,6.9156,144.6,144.55,24.212]
[1728445495479,6.9156,144.6,144.55,17.294]
[1728445498487,6.9156,144.6,144.56,1.38319786]
[1728445498714,6.9156,144.6,144.55,24.2117]
[1728445500984,6.9152,144.61,144.56,6.9174]
[1728445501192,1.72888208,144.64,144.57,23.776884]
[1728445501387,6.9146,144.62,144.57,32.07676349]
[1728445501593,6.9146,144.62,144.57,30.693784]
[1728445502592,6.9146,144.62,144.58,1.38295896]
[1728445504194,6.9146,144.62,144.57,30.693784]
[1728445505191,6.9146,144.62,144.58,1.38295236]
[1728445505484,6.9146,144.62,144.57,30.693784]
[1728445506295,6.9146,144.62,144.58,1.3829581]
[1728445506784,6.9142,144.63,144.58,8.2994581]
[1728445507001,6.9138,144.64,144.59,6.916]
[1728445507169,6.9138,144.64,144.6,1.38280987]
[1728445508387,6.9142,144.63,144.6,1.38280987]
[1728445510189,16.1333,144.66,144.6,1.38280987]
[1728445510490,6.9137,144.64,144.6,1.38280987]
[1728445511093,6.9137,144.64,144.59,6.916]
[1728445515097,6.9137,144.64,144.6,8.29819155]
[1728445515301,1.72851914,144.67,144.6,1.38269155]
[1728445515527,6.9131,144.66,144.61,23.776884]
[1728445515798,6.9131,144.66,144.62,1.38255029]
[1728445516398,6.9131,144.66,144.6,23.776884]
[1728445516593,12.87930578,144.69,144.62,23.776884]
[1728445516805,6.9124,144.67,144.63,1.38247306]
[1728445517287,7.7634224,144.69,144.63,32.07345518]
[1728445517876,7.7634224,144.69,144.63,25.15935518]
[1728445518076,7.7634224,144.69,144.64,6.9136]
[1728445518387,6.9118,144.68,144.65,1.38235001]
[1728445518993,7.7631224,144.69,144.65,1.38235001]
[1728445519395,6.9118,144.68,144.64,6.9136]
[1728445519696,6.9118,144.68,144.64,23.776884]
[1728445520105,7.7630224,144.69,144.64,23.776884]
[1728445520278,0.8517224,144.69,144.65,6.9132]
[1728445520618,0.8517224,144.69,144.65,8.29541823]
[1728445522613,6.9127,144.66,144.61,13.0967]
[1728445522781,6.9127,144.66,144.6,6.9154]
[1728445522980,6.9133,144.65,144.59,24.2052]
[1728445523190,6.9137,144.64,144.59,17.2892]
[1728445523984,6.9132,144.66,144.6,1.38274012]
[1728445524404,6.9124,144.67,144.6,30.817974]
[1728445524902,6.9118,144.68,144.62,6.9146]
[1728445526108,6.9118,144.68,144.63,1.38246086]
[1728445526283,6.9118,144.68,144.63,23.776884]
[1728445526904,6.9118,144.68,144.64,1.38235647]
[1728445527512,6.9118,144.68,144.63,23.776884]
[1728445530400,6.9118,144.68,144.62,23.776884]
[1728445530604,6.9118,144.68,144.63,6.914]
[1728445531687,6.9118,144.68,144.64,23.776884]
[1728445532001,6.9118,144.68,144.63,6.914]
[1728445532198,6.9118,144.68,144.63,23.776884]
[1728445534913,6.9118,144.68,144.64,1.38235594]
[1728445535904,7.7630224,144.69,144.63,30.690884]
[1728445536112,0.8517224,144.69,144.65,23.776884]
[1728445536300,0.8517224,144.69,144.66,1.38209994]
[1728445537414,0.8517224,144.69,144.66,6.9125]
[1728445538091,0.8517224,144.69,144.67,1.38202553]
[1728445540113,0.8517224,144.69,144.67,6.9122]
[1728445542712,0.8517224,144.69,144.68,32.07064106]
[1728445543531,0.8517224,144.69,144.68,30.688684]
[1728445552516,0.8517224,144.69,144.68,23.776884]
[1728445557018,0.8517224,144.69,144.68,30.688684]
[1728445561017,0.8517224,144.69,144.44,237.2104]
[1728445561018,2.0,144.6,144.44,237.2104]
[1728445561343,2.57910844,144.69,144.28,216.4204]
[1728445561344,6.9304,144.29,144.28,216.4204]
[1728445561517,23.776884,144.37,144.35,319.492716]
[1728445561832,23.776884,144.37,144.35,136.03584589]
[1728445562037,16.90361709,144.36,144.35,121.86049709]
[1728445562639,16.90361709,144.36,144.35,113.82466468]
[1728445562836,23.83071709,144.36,144.35,109.20466468]
[1728445563013,15.19299506,144.36,144.35,104.04585623]
[1728445563438,38.96987906,144.36,144.35,104.04585623]
[1728445563810,43.04820024,144.36,144.35,104.04585623]
[1728445564134,49.89249027,144.36,144.35,104.04585623]
[1728445564927,41.62659521,144.36,144.35,104.04585623]
[1728445565312,37.54827403,144.36,144.35,104.04585623]
[1728445565516,254.0524983,144.36,144.35,104.04585623]
[1728445565717,261.57847999,144.36,144.35,104.04585623]
[1728445566230,265.62975106,144.36,144.35,104.04585623]
[1728445566413,262.8532487,144.36,144.35,104.04585623]
[1728445567135,256.37121498,144.36,144.35,104.04585623]
[1728445567340,251.25947934,144.36,144.35,104.04585623]
[1728445567916,247.20820827,144.36,144.35,104.04585623]
[1728445568226,251.2404734,144.36,144.35,104.04585623]
[1728445568724,23.776884,144.35,144.26,6.9317]
[1728445568912,23.776884,144.33,144.26,6.9317]
[1728445569112,1.73295149,144.32,144.26,6.9317]
[1728445571124,1.73295149,144.32,144.27,6.9313]
[1728445573335,1.73295149,144.32,144.24,15.01383539]
[1728445575127,165.36107262,144.32,144.27,6.9313]
[1728445575331,1.73294766,144.31,144.27,6.9313]
[1728445575716,1.73294766,144.31,144.25,6.932]
[1728445575913,1.73294766,144.31,144.25,6.9323]
[1728445575914,23.776884,144.3,144.25,6.9323]
[1728445576119,1.73319061,144.29,144.25,6.9323]
[1728445579419,150.89523226,144.29,144.25,6.9323]
[1728445579622,1.73317812,144.28,144.25,6.9323]
[1728445580039,1.73317812,144.28,144.24,15.01383539]
[1728445580346,23.776884,144.27,144.21,6.9343]
[1728445580522,23.776884,144.27,144.2,17.3359]
[1728445580523,1.73357032,144.26,144.22,6.9336]
[1728445580846,122.11355651,144.26,144.22,6.9336]
[1728445581439,99.01838216,144.25,144.23,6.9329]
[1728445581619,1.73340128,144.24,144.23,6.9329]
[1728445584338,1.73340128,144.24,144.22,6.9338]
[1728445585743,1.73340128,144.24,144.2,17.3359]
[1728445587034,1.73340128,144.24,144.2,24.2706]
[1728445589530,1.73340128,144.24,144.21,6.9342]
[1728445590452,6.9315,144.27,144.22,6.9336]
[1728445590639,1.73358323,144.26,144.22,6.9336]
[1728445592750,1.73358323,144.26,144.24,6.9328]
[1728445593269,23.776884,144.29,144.24,6.9328]
[1728445593447,1.73338171,144.28,144.22,17.3334]
[1728445593647,8.66438171,144.28,144.23,6.9332]
[1728445594079,30.708384,144.27,144.22,24.2671]
[1728445594270,1.73345021,144.26,144.22,24.2671]
[1728445595273,1.73345021,144.26,144.22,17.3334]
[1728445595457,1.7334435,144.28,144.24,6.9325]
[1728445595657,8.6644435,144.28,144.22,17.3334]
[1728445595849,8.6644435,144.28,144.23,6.9333]
[1728445596317,6.9315,144.27,144.23,6.9333]
[1728445596493,1.73340862,144.26,144.23,6.9333]
[1728445600169,8.66540862,144.26,144.22,17.3334]
[1728445600350,8.66540862,144.26,144.22,24.2671]
[1728445601172,1.73340862,144.26,144.22,24.2671]
[1728445601479,6.932,144.26,144.22,24.2671]
[1728445601774,6.932,144.26,144.22,17.3334]
[1728445603054,6.9324,144.25,144.21,6.9342]
[1728445603278,1.73369208,144.24,144.19,24.5336224]
[1728445603455,6.9348,144.2,144.19,0.8517224]
[1728445604086,30.711684,144.2,144.19,0.8517224]
[1728445629494,32.44618296,144.2,144.19,0.8517224]
[1728445640211,30.711684,144.2,144.19,0.8517224]
[1728445643716,6.9348,144.2,144.19,0.8517224]
[1728445644024,8.66894856,144.2,144.19,0.8517224]
[1728445644906,6.9348,144.2,144.19,0.8517224]
[1728445645211,1.73417447,144.2,144.19,0.8517224]
[1728445645997,1.73391271,144.21,144.19,0.8517224]
[1728445646699,1.73391271,144.21,144.19,7.7868224]
[1728445647029,1.73381825,144.22,144.2,22.8103]
[1728445647205,6.9338,144.22,144.2,22.8103]
[1728445647523,1.73380506,144.21,144.2,22.8103]
[1728445647701,6.9329,144.24,144.2,22.8103]
[1728445648710,6.9334,144.23,144.2,22.8103]
[1728445648910,1.73374729,144.22,144.2,22.8103]
[1728445649419,6.9329,144.24,144.2,22.8103]
[1728445654326,23.776884,144.26,144.2,22.8103]
[1728445654502,6.9339,144.22,144.2,22.8103]
[1728445654704,1.73379716,144.21,144.2,22.8103]
[1728445654915,1.73374157,144.22,144.2,22.8103]
[1728445660210,6.9341,144.22,144.2,22.8103]
[1728445660916,6.9335,144.23,144.2,22.8103]
[1728445661114,1.73371704,144.22,144.2,22.8103]
[1728445664042,6.9342,144.22,144.2,22.8103]
[1728445664232,6.9337,144.23,144.2,22.8103]
[1728445664723,1.73373417,144.22,144.2,22.8103]
[1728445665129,1.73373417,144.22,144.2,29.7451]
[1728445665426,1.73362378,144.23,144.2,29.7451]
[1728445673843,1.73362378,144.23,144.21,6.9341]
[1728445674019,1.73350207,144.24,144.21,6.9341]
[1728445677233,8.66650207,144.24,144.2,22.8103]
[1728445677528,9.88435913,144.3,144.2,22.8103]
[1728445677529,8.66720312,144.23,144.2,22.8103]
[1728445679942,1.73370312,144.23,144.2,22.8103]
[1728445680117,6.9329,144.24,144.2,22.8103]
[1728445680318,1.73362143,144.23,144.2,22.8103]
[1728445680719,1.73362143,144.23,144.2,29.7449]
[1728445680943,17.3279,144.28,144.19,0.8517224]
[1728445681154,6.9348,144.2,144.19,0.8517224]
[1728445681622,30.711684,144.2,144.19,0.8517224]
[1728445700343,30.711684,144.2,144.11,21.5229]
[1728445700344,6.9386,144.12,144.11,21.5229]
[1728445701159,6.9382,144.13,144.11,21.5229]
[1728445701391,1.73488056,144.12,144.11,21.5229]
[1728445705467,8.67348056,144.12,144.11,21.5229]
[1728445709978,8.67348056,144.12,144.11,21.5229]
[1728445712177,6.9373,144.15,144.11,21.5229]
[1728445712471,1.73475889,144.14,144.11,21.5229]
[1728445712680,6.9378,144.14,144.11,21.5229]
[1728445712973,1.73476145,144.13,144.11,21.5229]
[1728445715074,6.9373,144.15,144.11,28.4619]
[1728445715285,1.73464743,144.14,144.11,28.4619]
[1728445716069,1.7346206,144.15,144.11,28.4619]
[1728445716370,8.6719206,144.15,144.11,28.4619]
[1728445716563,1.73458858,144.14,144.11,28.4619]
[1728445717279,1.73458858,144.14,144.12,6.9386]
[1728445717462,1.73454263,144.15,144.12,6.9386]
[1728445718761,1.7344565,144.19,144.12,6.9386]
[1728445718962,6.9362,144.17,144.13,6.9381]
[1728445719168,1.73438567,144.16,144.13,6.9381]
[1728445720559,1.73438567,144.16,144.12,6.9385]
[1728445723089,1.73438567,144.16,144.13,6.938]
[1728445723262,6.9362,144.17,144.13,6.938]
[1728445723468,6.9358,144.18,144.13,6.938]
[1728445723667,1.73430365,144.17,144.13,6.938]
[1728445724185,6.9353,144.19,144.15,6.9371]
[1728445724378,1.73411552,144.18,144.15,6.9371]
[1728445727696,8.66991552,144.18,144.14,17.3435]
[1728445727994,281.17296919,144.24,144.11,21.5229]
[1728445727995,6.9386,144.12,144.11,21.5229]
[1728445728293,23.776884,144.16,144.11,21.5229]
[1728445728294,6.9382,144.13,144.11,21.5229]
[1728445728469,1.73481883,144.12,144.11,21.5229]
[1728445728672,6.9377,144.14,144.11,21.5229]
[1728445728866,1.7348192,144.13,144.11,21.5229]
[1728445732092,6.9382,144.13,144.11,21.5229]
[1728445732290,1.734818,144.12,144.11,21.5229]
[1728445735497,6.9382,144.13,144.11,21.5229]
[1728445736183,6.9377,144.14,144.11,21.5229]
[1728445736371,1.73473276,144.13,144.11,21.5229]
[1728445736984,6.9367,144.16,144.11,34.47825119]
[1728445737298,1.73451751,144.15,144.11,41.41685119]
[1728445737486,1.7344911,144.16,144.11,41.41685119]
[1728445738005,8.6711911,144.16,144.11,41.41685119]
[1728445738300,1.73446345,144.15,144.11,41.41685119]
[1728445738487,17.3372,144.2,144.11,34.47825119]
[1728445738696,6.9363,144.17,144.12,6.9386]
[1728445738915,1.73437041,144.16,144.12,6.9386]
[1728445744910,8.67107041,144.16,144.12,6.9386]
[1728445747503,8.67107041,144.16,144.11,34.47825119]
[1728445747704,8.67107041,144.16,144.11,41.41725119]
[1728445748083,6.9372,144.15,144.11,41.41725119]
[1728445748283,17.3372,144.2,144.11,21.5229]
[1728445748284,8.67216209,144.14,144.11,21.5229]
[1728445749110,6.9373,144.15,144.11,21.5229]
[1728445749286,1.73458386,144.14,144.11,21.5229]
[1728445749690,6.9367,144.16,144.11,29.84951092]
[1728445750111,1.73443878,144.15,144.11,28.4618]
[1728445750312,8.67163878,144.15,144.11,28.4618]
[1728445750689,8.67163878,144.15,144.11,21.5229]
[1728445751300,17.3372,144.2,144.12,12.95535119]
[1728445751301,1.73450842,144.19,144.12,12.95535119]
[1728445751502,6.9363,144.17,144.13,6.9381]
[1728445752292,6.9363,144.17,144.12,21.28145792]
[1728445752493,6.9363,144.17,144.13,6.9381]
[1728445753411,6.9358,144.18,144.13,6.9381]
[1728445753593,6.9353,144.19,144.14,19.89265119]
[1728445753792,1.73409531,144.18,144.14,19.89265119]
[1728445756395,6.9367,144.16,144.11,28.4619]
[1728445756610,17.3364,144.21,144.12,19.89375119]
[1728445756611,6.9362,144.17,144.12,19.89375119]
[1728445757416,6.9358,144.18,144.14,6.9374]
[1728445757710,6.9358,144.18,144.14,12.95535119]
[1728445760391,8.67042108,144.17,144.14,12.95535119]
[1728445762819,1.73412108,144.17,144.14,12.95535119]
[1728445763019,6.9358,144.18,144.14,12.95535119]
[1728445763517,6.9358,144.18,144.14,19.89285119]
[1728445768401,1.73420819,144.2,144.16,12.95535119]
[1728445768630,6.9339,144.22,144.18,12.95535119]
[1728445768947,1.73381936,144.21,144.18,12.95535119]
[1728445771928,6.9339,144.22,144.18,19.89105119]
[1728445772095,6.9339,144.22,144.18,42.45805119]
[1728445773222,1.73372989,144.26,144.18,35.52235119]
[1728445773522,1.73372989,144.26,144.21,6.934]
[1728445773704,6.9324,144.25,144.21,6.934]
[1728445773906,1.73344389,144.24,144.21,6.934]
[1728445774515,1.73344389,144.24,144.2,37.22615119]
[1728445779030,6.9324,144.25,144.2,37.22615119]
[1728445779226,1.73337619,144.24,144.2,17.3362]
[1728445779406,6.9332,144.24,144.2,17.3362]
[1728445781536,6.9332,144.24,144.2,24.2709]
[1728445782625,6.9332,144.24,144.2,37.22625119]
[1728445785540,1.73344453,144.28,144.2,37.22625119]
[1728445785717,6.9324,144.25,144.2,37.22625119]
[1728445789234,6.9324,144.25,144.21,19.88955119]
[1728445791544,6.9315,144.27,144.22,6.9334]
[1728445791844,1.73322669,144.26,144.22,6.9334]
[1728445793844,6.9315,144.27,144.23,6.9333]
[1728445795326,1.73311372,144.26,144.23,6.9333]
[1728445796450,6.9315,144.27,144.23,6.9333]
[1728445796620,6.9311,144.28,144.24,6.9328]
[1728445797128,1.73309661,144.27,144.24,6.9328]
[1728445797841,23.776884,144.3,144.13,22.2867]
[1728445798144,6.9353,144.19,144.14,6.9376]
[1728445798342,8.66980483,144.18,144.13,46.5697]
[1728445800545,6.9362,144.17,144.13,46.5697]
[1728445802451,23.776884,144.22,144.14,6.9376]
[1728445802626,6.9353,144.19,144.14,6.9376]
[1728445802832,1.73408148,144.18,144.14,6.9376]
[1728445804240,1.73408398,144.21,144.14,12.95535119]
[1728445804430,8.66878398,144.21,144.16,6.9367]
[1728445804754,8.66878398,144.21,144.16,19.89205119]
[1728445805331,1.73408398,144.21,144.16,12.95535119]
[1728445805649,1.73408398,144.21,144.17,24.276]
[1728445806343,6.934,144.22,144.17,24.276]
[1728445808270,6.933,144.24,144.17,17.3398]
[1728445808437,8.66704297,144.23,144.17,17.3398]
[1728445808962,8.66704297,144.23,144.18,6.9356]
[1728445809335,1.73364297,144.23,144.18,6.9356]
[1728445809562,6.9338,144.22,144.18,6.9356]
[1728445814970,6.9338,144.22,144.17,24.2759]
[1728445819071,1.73363476,144.21,144.17,17.3398]
[1728445819370,23.776884,144.23,144.14,30.29945119]
[1728445819673,1.73393868,144.22,144.14,30.29945119]
[1728445819974,6.9353,144.19,144.15,6.9371]
[1728445820472,6.9348,144.2,144.15,6.9371]
[1728445820841,6.9348,144.2,144.16,6.9367]
[1728445823671,9.88435913,144.27,144.09,22.8823]
[1728445823672,1.73382403,144.19,144.09,22.8823]
[1728445823870,6.9382,144.13,144.09,22.8823]
[1728445824556,1.73476586,144.12,144.09,22.8823]
[1728445825269,8.67346586,144.12,144.09,22.8823]
[1728445829556,6.9381,144.13,144.09,22.8823]
[1728445829778,1.73484362,144.16,144.1,12.95535119]
[1728445830259,6.9377,144.14,144.1,12.95535119]
[1728445830762,8.67184362,144.16,144.1,19.89455119]
[1728445830970,6.937,144.16,144.1,19.89455119]
[1728445831969,6.9373,144.15,144.1,19.89455119]
[1728445834079,6.9367,144.16,144.11,6.9391]
[1728445842488,6.9372,144.15,144.11,6.9391]
[1728445844587,6.9372,144.15,144.1,19.89485119]
[1728445846583,1.73433999,144.18,144.1,19.89485119]